[Event "Titled Tuesday Blitz June 15 2021"]
[White "De Silva, L M S T"]
[Black "Ambartsumova, Karina"]
[WhiteFideId "9953698"]
[BlackFideId "4166299"]
[WhiteElo "1621"]
[BlackElo "2262"]
[Result "1-0"]
[Round "02"]
[TimeControl "180+1"]
[Date "2021.06.15"]
[WhiteClock "0:00:15"]
[BlackClock "0:00:02"]

1. Nf3 {[%clk 0:02:52]}  Nf6 {[%clk 0:02:59]} 2. b3 {[%clk 0:02:52]}  g6 {[%clk 0:02:57]} 3. Bb2 {[%clk 0:02:53]}  Bg7 {[%clk 0:02:58]} 4. c4 {[%clk 0:02:54]}  O-O {[%clk 0:02:56]} 5. e3 {[%clk 0:02:54]}  c5 {[%clk 0:02:43]} 6. Be2 {[%clk 0:02:53]}  b6 {[%clk 0:02:41]} 7. O-O {[%clk 0:02:52]}  Bb7 {[%clk 0:02:41]} 8. d4 {[%clk 0:02:51]}  cxd4 {[%clk 0:02:35]} 9. Nxd4 {[%clk 0:02:46]}  d5 {[%clk 0:02:28]} 10. Bf3 {[%clk 0:02:43]}  e6 {[%clk 0:02:08]} 11. Nc3 {[%clk 0:02:41]}  Na6 {[%clk 0:01:59]} 12. Qe2 {[%clk 0:02:00]}  Nc5 {[%clk 0:01:54]} 13. Rfd1 {[%clk 0:01:59]}  Qe7 {[%clk 0:01:39]} 14. cxd5 {[%clk 0:01:57]}  exd5 {[%clk 0:01:15]} 15. Ba3 {[%clk 0:01:48]}  Rfd8 {[%clk 0:01:11]} 16. Na4 {[%clk 0:01:47]}  Rac8 {[%clk 0:01:08]} 17. Rac1 {[%clk 0:01:46]}  Nfe4 {[%clk 0:00:57]} 18. Bxe4 {[%clk 0:01:33]}  dxe4 {[%clk 0:00:57]} 19. Qb5 {[%clk 0:01:29]}  a6 {[%clk 0:00:20]} 20. Qe2 {[%clk 0:00:53]}  Qf6 {[%clk 0:00:19]} 21. Nxc5 {[%clk 0:00:51]}  bxc5 {[%clk 0:00:20]} 22. Bxc5 {[%clk 0:00:52]}  h5 {[%clk 0:00:16]} 23. b4 {[%clk 0:00:51]}  h4 {[%clk 0:00:15]} 24. h3 {[%clk 0:00:52]}  Qg5 {[%clk 0:00:15]} 25. a4 {[%clk 0:00:46]}  Re8 {[%clk 0:00:15]} 26. Bd6 {[%clk 0:00:40]}  Qf6 {[%clk 0:00:07]} 27. Bh2 {[%clk 0:00:36]}  Qe7 {[%clk 0:00:05]} 28. b5 {[%clk 0:00:34]}  axb5 {[%clk 0:00:05]} 29. axb5 {[%clk 0:00:35]}  Be5 {[%clk 0:00:04]} 30. Bxe5 {[%clk 0:00:32]}  Qxe5 {[%clk 0:00:05]} 31. Nc6 {[%clk 0:00:33]}  Bxc6 {[%clk 0:00:05]} 32. bxc6 {[%clk 0:00:34]}  Qe6 {[%clk 0:00:05]} 33. Qb5 {[%clk 0:00:31]}  Rc7 {[%clk 0:00:06]} 34. Rd2 {[%clk 0:00:28]}  Rec8 {[%clk 0:00:06]} 35. Rdc2 {[%clk 0:00:28]}  Kg7 {[%clk 0:00:06]} 36. Rc5 {[%clk 0:00:28]}  Qe7 {[%clk 0:00:05]} 37. Qc4 {[%clk 0:00:28]}  Qe8 {[%clk 0:00:03]} 38. Qd4+ {[%clk 0:00:28]}  Kg8 {[%clk 0:00:04]} 39. Re5 {[%clk 0:00:24]}  Re7 {[%clk 0:00:04]} 40. Rxe7 {[%clk 0:00:22]}  Qxe7 {[%clk 0:00:05]} 41. Qd5 {[%clk 0:00:21]}  Rc7 {[%clk 0:00:05]} 42. Rc4 {[%clk 0:00:21]}  Qe8 {[%clk 0:00:06]} 43. Qd6 {[%clk 0:00:19]}  Qc8 {[%clk 0:00:05]} 44. Qf6 {[%clk 0:00:17]}  Qe8 {[%clk 0:00:04]} 45. Rc5 {[%clk 0:00:15]}  Qe6 {[%clk 0:00:02]} 46. Qd8+ {[%clk 0:00:15]}  Kg7 {[%clk 0:00:02]} 47. Qxc7 {[%clk 0:00:15]} 1-0


[Site "https://www.chess.com"]

[Event "Titled Tuesday Blitz June 15 2021"]
[White "Demin, Vladimir"]
[Black "Vokhidov, Shamsiddin"]
[WhiteFideId "4167457"]
[BlackFideId "14204223"]
[WhiteElo "2581"]
[BlackElo "2572"]
[Result "1/2-1/2"]
[Round "02"]
[TimeControl "180+1"]
[Date "2021.06.15"]
[WhiteClock "0:00:10"]
[BlackClock "0:00:06"]

1. e4 {[%clk 0:03:00]}  c5 {[%clk 0:03:00]} 2. Nf3 {[%clk 0:03:01]}  Nc6 {[%clk 0:03:00]} 3. c3 {[%clk 0:03:00]}  e5 {[%clk 0:03:00]} 4. Bc4 {[%clk 0:02:59]}  Nf6 {[%clk 0:02:59]} 5. Ng5 {[%clk 0:02:48]}  d5 {[%clk 0:02:58]} 6. exd5 {[%clk 0:02:47]}  Nxd5 {[%clk 0:02:59]} 7. d3 {[%clk 0:02:43]}  Be7 {[%clk 0:02:53]} 8. Qh5 {[%clk 0:02:21]}  Bxg5 {[%clk 0:02:33]} 9. Bxg5 {[%clk 0:02:20]}  Qd6 {[%clk 0:02:31]} 10. Nd2 {[%clk 0:02:16]}  Be6 {[%clk 0:02:21]} 11. Ne4 {[%clk 0:02:15]}  Qf8 {[%clk 0:02:21]} 12. f4 {[%clk 0:02:02]}  exf4 {[%clk 0:02:18]} 13. O-O {[%clk 0:01:58]}  h6 {[%clk 0:02:05]} 14. Bxf4 {[%clk 0:01:57]}  O-O-O {[%clk 0:01:55]} 15. Bg3 {[%clk 0:01:50]}  f5 {[%clk 0:01:49]} 16. Rae1 {[%clk 0:01:35]}  g5 {[%clk 0:01:34]} 17. Qg6 {[%clk 0:01:18]}  Qg8 {[%clk 0:01:08]} 18. Qxg8 {[%clk 0:01:13]}  Bxg8 {[%clk 0:01:07]} 19. Nd6+ {[%clk 0:01:12]}  Kc7 {[%clk 0:00:46]} 20. Nxf5+ {[%clk 0:01:10]}  Kb6 {[%clk 0:00:45]} 21. Ng7 {[%clk 0:00:56]}  Nf4 {[%clk 0:00:35]} 22. Bxf4 {[%clk 0:00:50]}  Bxc4 {[%clk 0:00:35]} 23. Bg3 {[%clk 0:00:39]}  Rxd3 {[%clk 0:00:32]} 24. b3 {[%clk 0:00:37]}  Rxg3 {[%clk 0:00:31]} 25. hxg3 {[%clk 0:00:35]}  Bxf1 {[%clk 0:00:31]} 26. Rxf1 {[%clk 0:00:36]}  Rd8 {[%clk 0:00:29]} 27. Nf5 {[%clk 0:00:34]}  Rd3 {[%clk 0:00:29]} 28. Rf3 {[%clk 0:00:34]}  Rd1+ {[%clk 0:00:28]} 29. Rf1 {[%clk 0:00:34]}  Rd2 {[%clk 0:00:28]} 30. Rf2 {[%clk 0:00:34]}  Rd3 {[%clk 0:00:26]} 31. Rf3 {[%clk 0:00:35]}  Rd1+ {[%clk 0:00:23]} 32. Rf1 {[%clk 0:00:35]}  Rd8 {[%clk 0:00:22]} 33. Nxh6 {[%clk 0:00:32]}  Ne5 {[%clk 0:00:22]} 34. Nf7 {[%clk 0:00:30]}  Nxf7 {[%clk 0:00:21]} 35. Rxf7 {[%clk 0:00:31]}  Rd3 {[%clk 0:00:21]} 36. Rf3 {[%clk 0:00:31]}  Rd2 {[%clk 0:00:20]} 37. Rf2 {[%clk 0:00:31]}  Rd1+ {[%clk 0:00:21]} 38. Rf1 {[%clk 0:00:32]}  Rd3 {[%clk 0:00:20]} 39. Rf3 {[%clk 0:00:32]}  Rd5 {[%clk 0:00:20]} 40. c4 {[%clk 0:00:31]}  Rd2 {[%clk 0:00:19]} 41. Rf2 {[%clk 0:00:31]}  Rd4 {[%clk 0:00:20]} 42. Kf1 {[%clk 0:00:30]}  g4 {[%clk 0:00:19]} 43. Ke2 {[%clk 0:00:29]}  Re4+ {[%clk 0:00:19]} 44. Kd3 {[%clk 0:00:28]}  Rd4+ {[%clk 0:00:20]} 45. Ke3 {[%clk 0:00:28]}  Rd1 {[%clk 0:00:19]} 46. Kf4 {[%clk 0:00:27]}  Rd4+ {[%clk 0:00:18]} 47. Ke5 {[%clk 0:00:25]}  Ka5 {[%clk 0:00:19]} 48. a3 {[%clk 0:00:25]}  Rd3 {[%clk 0:00:19]} 49. Rb2 {[%clk 0:00:24]}  Rxg3 {[%clk 0:00:19]} 50. Kf4 {[%clk 0:00:25]}  Rd3 {[%clk 0:00:19]} 51. Kxg4 {[%clk 0:00:25]}  b5 {[%clk 0:00:17]} 52. cxb5 {[%clk 0:00:25]}  Kxb5 {[%clk 0:00:18]} 53. Kf5 {[%clk 0:00:25]}  a5 {[%clk 0:00:18]} 54. g4 {[%clk 0:00:24]}  Rf3+ {[%clk 0:00:18]} 55. Ke4 {[%clk 0:00:24]}  Rg3 {[%clk 0:00:18]} 56. Kf4 {[%clk 0:00:24]}  Rg1 {[%clk 0:00:18]} 57. g5 {[%clk 0:00:24]}  a4 {[%clk 0:00:19]} 58. bxa4+ {[%clk 0:00:24]}  Kxa4 {[%clk 0:00:20]} 59. Rc2 {[%clk 0:00:25]}  Kb5 {[%clk 0:00:19]} 60. Kf5 {[%clk 0:00:24]}  c4 {[%clk 0:00:19]} 61. Kf6 {[%clk 0:00:24]}  Rf1+ {[%clk 0:00:20]} 62. Kg7 {[%clk 0:00:24]}  Rf4 {[%clk 0:00:19]} 63. g6 {[%clk 0:00:23]}  Ka4 {[%clk 0:00:20]} 64. Rc3 {[%clk 0:00:24]}  Kb5 {[%clk 0:00:18]} 65. Kh7 {[%clk 0:00:24]}  Rh4+ {[%clk 0:00:18]} 66. Kg8 {[%clk 0:00:24]}  Kc5 {[%clk 0:00:19]} 67. g7 {[%clk 0:00:23]}  Kd4 {[%clk 0:00:20]} 68. Rf3 {[%clk 0:00:21]}  c3 {[%clk 0:00:20]} 69. Kf8 {[%clk 0:00:20]}  c2 {[%clk 0:00:19]} 70. g8=Q {[%clk 0:00:17]}  c1=Q {[%clk 0:00:19]} 71. Qg7+ {[%clk 0:00:17]}  Ke4 {[%clk 0:00:19]} 72. Qe7+ {[%clk 0:00:11]}  Kxf3 {[%clk 0:00:19]} 73. Qxh4 {[%clk 0:00:11]}  Qc8+ {[%clk 0:00:18]} 74. Kf7 {[%clk 0:00:11]}  Qb7+ {[%clk 0:00:15]} 75. Qe7 {[%clk 0:00:11]}  Qd5+ {[%clk 0:00:15]} 76. Ke8 {[%clk 0:00:11]}  Qa8+ {[%clk 0:00:15]} 77. Kd7 {[%clk 0:00:11]}  Qa7+ {[%clk 0:00:15]} 78. Ke6 {[%clk 0:00:12]}  Qa6+ {[%clk 0:00:14]} 79. Qd6 {[%clk 0:00:12]}  Qc8+ {[%clk 0:00:14]} 80. Ke7 {[%clk 0:00:11]}  Qb7+ {[%clk 0:00:14]} 81. Kf6 {[%clk 0:00:12]}  Qa8 {[%clk 0:00:11]} 82. Ke6 {[%clk 0:00:09]}  Qe8+ {[%clk 0:00:10]} 83. Kd5 {[%clk 0:00:09]}  Qa8+ {[%clk 0:00:10]} 84. Ke5 {[%clk 0:00:09]}  Qe8+ {[%clk 0:00:10]} 85. Kf6 {[%clk 0:00:09]}  Qh8+ {[%clk 0:00:09]} 86. Kf7 {[%clk 0:00:08]}  Qa8 {[%clk 0:00:09]} 87. Qe7 {[%clk 0:00:08]}  Kf4 {[%clk 0:00:08]} 88. Qf6+ {[%clk 0:00:08]}  Ke4 {[%clk 0:00:08]} 89. Qe6+ {[%clk 0:00:08]}  Kf4 {[%clk 0:00:08]} 90. Qd6+ {[%clk 0:00:08]}  Ke4 {[%clk 0:00:08]} 91. Kg7 {[%clk 0:00:08]}  Qb7+ {[%clk 0:00:07]} 92. Kf6 {[%clk 0:00:08]}  Qa8 {[%clk 0:00:06]} 93. Kf7 {[%clk 0:00:08]}  Qb7+ {[%clk 0:00:04]} 94. Qe7+ {[%clk 0:00:08]}  Qxe7+ {[%clk 0:00:04]} 95. Kxe7 {[%clk 0:00:09]}  Kd5 {[%clk 0:00:05]} 96. a4 {[%clk 0:00:09]}  Kc6 {[%clk 0:00:05]} 97. Ke6 {[%clk 0:00:09]}  Kb6 {[%clk 0:00:05]} 98. a5+ {[%clk 0:00:10]}  Kxa5 {[%clk 0:00:06]} 1/2-1/2


[Site "https://www.chess.com"]

[Event "Titled Tuesday Blitz June 15 2021"]
[White "Dobrov, Vladimir"]
[Black "Bazarov, Konstantin"]
[WhiteFideId "4136594"]
[BlackFideId "4137000"]
[WhiteElo "2614"]
[BlackElo "2209"]
[Result "1/2-1/2"]
[Round "02"]
[TimeControl "180+1"]
[Date "2021.06.15"]
[WhiteClock "0:00:06"]
[BlackClock "0:00:03"]

1. b3 {[%clk 0:03:00]}  e5 {[%clk 0:02:58]} 2. Bb2 {[%clk 0:03:01]}  Nc6 {[%clk 0:02:58]} 3. e3 {[%clk 0:03:01]}  a6 {[%clk 0:02:57]} 4. Ne2 {[%clk 0:02:59]}  d5 {[%clk 0:02:56]} 5. d4 {[%clk 0:02:48]}  exd4 {[%clk 0:02:54]} 6. Nxd4 {[%clk 0:02:48]}  Bb4+ {[%clk 0:02:52]} 7. c3 {[%clk 0:02:47]}  Be7 {[%clk 0:02:49]} 8. Be2 {[%clk 0:02:44]}  Nf6 {[%clk 0:02:48]} 9. O-O {[%clk 0:02:43]}  Nxd4 {[%clk 0:02:47]} 10. Qxd4 {[%clk 0:02:38]}  c6 {[%clk 0:02:47]} 11. Nd2 {[%clk 0:02:24]}  O-O {[%clk 0:02:45]} 12. c4 {[%clk 0:02:23]}  dxc4 {[%clk 0:02:43]} 13. Nxc4 {[%clk 0:02:19]}  Qxd4 {[%clk 0:02:41]} 14. Bxd4 {[%clk 0:02:19]}  Be6 {[%clk 0:02:40]} 15. Na5 {[%clk 0:02:13]}  c5 {[%clk 0:02:38]} 16. Bb2 {[%clk 0:02:08]}  Bd5 {[%clk 0:02:32]} 17. Bf3 {[%clk 0:02:07]}  Bxf3 {[%clk 0:02:12]} 18. gxf3 {[%clk 0:02:08]}  Ra7 {[%clk 0:02:02]} 19. Rfd1 {[%clk 0:02:05]}  b6 {[%clk 0:01:54]} 20. Nc6 {[%clk 0:02:04]}  Rb7 {[%clk 0:01:54]} 21. Nxe7+ {[%clk 0:01:36]}  Rxe7 {[%clk 0:01:53]} 22. Rd6 {[%clk 0:01:36]}  Re6 {[%clk 0:01:52]} 23. Rxe6 {[%clk 0:01:35]}  fxe6 {[%clk 0:01:51]} 24. Rd1 {[%clk 0:01:36]}  Ne8 {[%clk 0:01:44]} 25. Rd7 {[%clk 0:01:33]}  Rxf3 {[%clk 0:01:40]} 26. Re7 {[%clk 0:01:28]}  Kf8 {[%clk 0:01:33]} 27. Rxe6 {[%clk 0:01:27]}  b5 {[%clk 0:01:29]} 28. Rxa6 {[%clk 0:01:27]}  Rf5 {[%clk 0:01:26]} 29. Rc6 {[%clk 0:01:26]}  Ke7 {[%clk 0:01:22]} 30. a3 {[%clk 0:00:56]}  g6 {[%clk 0:00:48]} 31. Rb6 {[%clk 0:00:51]}  c4 {[%clk 0:00:47]} 32. bxc4 {[%clk 0:00:51]}  bxc4 {[%clk 0:00:46]} 33. Rc6 {[%clk 0:00:47]}  Nd6 {[%clk 0:00:44]} 34. Rc7+ {[%clk 0:00:44]}  Ke6 {[%clk 0:00:44]} 35. Bc3 {[%clk 0:00:38]}  Ne4 {[%clk 0:00:40]} 36. Rxc4 {[%clk 0:00:36]}  Nxf2 {[%clk 0:00:39]} 37. Kg2 {[%clk 0:00:25]}  Nd3 {[%clk 0:00:33]} 38. Re4+ {[%clk 0:00:21]}  Kf7 {[%clk 0:00:30]} 39. Rd4 {[%clk 0:00:21]}  Nc5 {[%clk 0:00:27]} 40. Rf4 {[%clk 0:00:20]}  Ke6 {[%clk 0:00:26]} 41. Rc4 {[%clk 0:00:18]}  Rh5 {[%clk 0:00:22]} 42. a4 {[%clk 0:00:16]}  Nb3 {[%clk 0:00:20]} 43. Re4+ {[%clk 0:00:14]}  Kd6 {[%clk 0:00:18]} 44. Rb4 {[%clk 0:00:15]}  Nc5 {[%clk 0:00:17]} 45. Rb6+ {[%clk 0:00:14]}  Kd5 {[%clk 0:00:17]} 46. Rb4 {[%clk 0:00:14]}  Kc6 {[%clk 0:00:15]} 47. Rc4 {[%clk 0:00:13]}  Kd5 {[%clk 0:00:14]} 48. Rd4+ {[%clk 0:00:14]}  Kc6 {[%clk 0:00:14]} 49. Rf4 {[%clk 0:00:13]}  Ne6 {[%clk 0:00:13]} 50. Rf6 {[%clk 0:00:13]}  Kd5 {[%clk 0:00:12]} 51. a5 {[%clk 0:00:13]}  Nc5 {[%clk 0:00:11]} 52. Rf7 {[%clk 0:00:13]}  Rh4 {[%clk 0:00:11]} 53. Be1 {[%clk 0:00:12]}  Ra4 {[%clk 0:00:11]} 54. Rxh7 {[%clk 0:00:12]}  Nd3 {[%clk 0:00:10]} 55. Rd7+ {[%clk 0:00:11]}  Ke4 {[%clk 0:00:10]} 56. Bd2 {[%clk 0:00:10]}  Nc5 {[%clk 0:00:08]} 57. Kg3 {[%clk 0:00:09]}  Nxd7 {[%clk 0:00:08]} 58. Kg4 {[%clk 0:00:08]}  Ne5+ {[%clk 0:00:08]} 59. Kg3 {[%clk 0:00:07]}  Nf3 {[%clk 0:00:08]} 60. Bc3 {[%clk 0:00:06]}  Kxe3 {[%clk 0:00:07]} 61. h3 {[%clk 0:00:06]}  Nd2 {[%clk 0:00:07]} 62. Bg7 {[%clk 0:00:04]}  Ne4+ {[%clk 0:00:07]} 63. Kg4 {[%clk 0:00:04]}  Rxa5 {[%clk 0:00:07]} 64. h4 {[%clk 0:00:04]}  Kd3 {[%clk 0:00:06]} 65. Kf4 {[%clk 0:00:04]}  Rb5 {[%clk 0:00:06]} 66. Kg4 {[%clk 0:00:05]}  Rf5 {[%clk 0:00:07]} 67. Bh8 {[%clk 0:00:05]}  Rd5 {[%clk 0:00:07]} 68. Kf4 {[%clk 0:00:04]}  Nc3 {[%clk 0:00:06]} 69. Kg4 {[%clk 0:00:04]}  Ke4 {[%clk 0:00:05]} 70. Bxc3 {[%clk 0:00:03]}  Rf5 {[%clk 0:00:03]} 71. Bg7 {[%clk 0:00:04]}  Rd5 {[%clk 0:00:02]} 72. Bh8 {[%clk 0:00:04]}  Rf5 {[%clk 0:00:02]} 73. Bg7 {[%clk 0:00:05]}  Rd5 {[%clk 0:00:03]} 74. Bh8 {[%clk 0:00:05]}  Rf5 {[%clk 0:00:03]} 75. Bg7 {[%clk 0:00:06]} 1/2-1/2


[Site "https://www.chess.com"]

[Event "Titled Tuesday Blitz June 15 2021"]
[White "Drygalov, Sergey"]
[Black "Levitskiy, Andrey"]
[WhiteFideId "24171743"]
[BlackFideId "14132885"]
[WhiteElo "2514"]
[BlackElo "2323"]
[Result "1-0"]
[Round "02"]
[TimeControl "180+1"]
[Date "2021.06.15"]
[WhiteClock "0:00:33"]
[BlackClock "0:00:03"]

1. d4 {[%clk 0:02:59]}  Nf6 {[%clk 0:02:58]} 2. Nf3 {[%clk 0:02:59]}  e6 {[%clk 0:02:57]} 3. c4 {[%clk 0:02:59]}  Bb4+ {[%clk 0:02:57]} 4. Nbd2 {[%clk 0:02:59]}  d6 {[%clk 0:02:57]} 5. a3 {[%clk 0:02:48]}  Bxd2+ {[%clk 0:02:57]} 6. Qxd2 {[%clk 0:02:49]}  a5 {[%clk 0:02:55]} 7. e3 {[%clk 0:02:48]}  O-O {[%clk 0:02:52]} 8. b3 {[%clk 0:02:48]}  Nbd7 {[%clk 0:02:51]} 9. Bb2 {[%clk 0:02:48]}  Qe7 {[%clk 0:02:51]} 10. Be2 {[%clk 0:02:48]}  b6 {[%clk 0:02:50]} 11. O-O {[%clk 0:02:48]}  Bb7 {[%clk 0:02:51]} 12. Rfe1 {[%clk 0:02:41]}  Ne4 {[%clk 0:02:42]} 13. Qc2 {[%clk 0:02:40]}  f5 {[%clk 0:02:42]} 14. d5 {[%clk 0:02:32]}  e5 {[%clk 0:02:18]} 15. Bd3 {[%clk 0:02:00]}  Ndc5 {[%clk 0:02:13]} 16. Bf1 {[%clk 0:01:56]}  a4 {[%clk 0:01:46]} 17. b4 {[%clk 0:01:56]}  Nb3 {[%clk 0:01:47]} 18. Rad1 {[%clk 0:01:54]}  g5 {[%clk 0:01:27]} 19. Bd3 {[%clk 0:01:49]}  g4 {[%clk 0:00:44]} 20. Bxe4 {[%clk 0:01:38]}  fxe4 {[%clk 0:00:45]} 21. Nd2 {[%clk 0:01:37]}  Qf7 {[%clk 0:00:26]} 22. Nxe4 {[%clk 0:01:31]}  Qf5 {[%clk 0:00:26]} 23. Re2 {[%clk 0:01:28]}  Bc8 {[%clk 0:00:16]} 24. Ng3 {[%clk 0:01:26]}  Qxc2 {[%clk 0:00:11]} 25. Rxc2 {[%clk 0:01:27]}  Bf5 {[%clk 0:00:08]} 26. e4 {[%clk 0:01:27]}  Bd7 {[%clk 0:00:05]} 27. Bc1 {[%clk 0:01:27]}  Rf7 {[%clk 0:00:04]} 28. Be3 {[%clk 0:01:26]}  Raf8 {[%clk 0:00:04]} 29. Bh6 {[%clk 0:01:16]}  Re8 {[%clk 0:00:04]} 30. Be3 {[%clk 0:01:10]}  Ref8 {[%clk 0:00:04]} 31. Ne2 {[%clk 0:00:58]}  Kg7 {[%clk 0:00:04]} 32. Nc1 {[%clk 0:00:51]}  Kg6 {[%clk 0:00:04]} 33. Nd3 {[%clk 0:00:48]}  h5 {[%clk 0:00:03]} 34. c5 {[%clk 0:00:48]}  Bb5 {[%clk 0:00:03]} 35. cxb6 {[%clk 0:00:47]}  cxb6 {[%clk 0:00:03]} 36. Bxb6 {[%clk 0:00:47]}  Bxd3 {[%clk 0:00:03]} 37. Rxd3 {[%clk 0:00:47]}  Rf4 {[%clk 0:00:03]} 38. Re3 {[%clk 0:00:42]}  R8f6 {[%clk 0:00:02]} 39. g3 {[%clk 0:00:38]}  Rf3 {[%clk 0:00:02]} 40. Rxf3 {[%clk 0:00:38]}  Rxf3 {[%clk 0:00:02]} 41. Be3 {[%clk 0:00:38]}  h4 {[%clk 0:00:02]} 42. gxh4 {[%clk 0:00:38]}  Kh5 {[%clk 0:00:02]} 43. b5 {[%clk 0:00:37]}  Kxh4 {[%clk 0:00:02]} 44. b6 {[%clk 0:00:38]}  Rf8 {[%clk 0:00:03]} 45. Kg2 {[%clk 0:00:33]}  Rb8 {[%clk 0:00:03]} 46. Rc6 {[%clk 0:00:34]}  Nd4 {[%clk 0:00:03]} 47. Rxd6 {[%clk 0:00:32]}  Nf3 {[%clk 0:00:03]} 48. Rh6# {[%clk 0:00:33]} 1-0


[Site "https://www.chess.com"]

[Event "Titled Tuesday Blitz June 15 2021"]
[White "Dudognon, Thibault"]
[Black "Savitski, Andrei"]
[WhiteFideId "20675569"]
[BlackFideId "13506161"]
[WhiteElo "2175"]
[BlackElo "2121"]
[Result "0-1"]
[Round "02"]
[TimeControl "180+1"]
[Date "2021.06.15"]
[WhiteClock "0:00:10"]
[BlackClock "0:00:11"]

1. e4 {[%clk 0:03:00]}  c5 {[%clk 0:03:00]} 2. d4 {[%clk 0:03:01]}  cxd4 {[%clk 0:02:59]} 3. c3 {[%clk 0:03:01]}  Nf6 {[%clk 0:02:59]} 4. e5 {[%clk 0:03:01]}  Nd5 {[%clk 0:03:00]} 5. Nf3 {[%clk 0:03:02]}  Nc6 {[%clk 0:02:59]} 6. Bc4 {[%clk 0:03:02]}  Nb6 {[%clk 0:03:00]} 7. Bb3 {[%clk 0:03:03]}  d5 {[%clk 0:03:00]} 8. exd6 {[%clk 0:03:04]}  Qxd6 {[%clk 0:03:00]} 9. O-O {[%clk 0:03:05]}  Bf5 {[%clk 0:02:59]} 10. Nxd4 {[%clk 0:02:59]}  Nxd4 {[%clk 0:02:55]} 11. cxd4 {[%clk 0:03:00]}  e6 {[%clk 0:02:55]} 12. Nc3 {[%clk 0:02:59]}  Be7 {[%clk 0:02:56]} 13. Qf3 {[%clk 0:02:57]}  Qd7 {[%clk 0:02:16]} 14. Rd1 {[%clk 0:02:41]}  O-O {[%clk 0:01:39]} 15. d5 {[%clk 0:02:41]}  e5 {[%clk 0:01:39]} 16. d6 {[%clk 0:02:28]}  Bd8 {[%clk 0:01:37]} 17. h3 {[%clk 0:02:13]}  Be6 {[%clk 0:01:34]} 18. Ne4 {[%clk 0:02:06]}  Bxb3 {[%clk 0:01:28]} 19. Qxb3 {[%clk 0:02:07]}  Rc8 {[%clk 0:01:25]} 20. Be3 {[%clk 0:02:05]}  Qf5 {[%clk 0:00:32]} 21. Ng3 {[%clk 0:01:57]}  Qc2 {[%clk 0:00:23]} 22. Rac1 {[%clk 0:01:39]}  Qxb3 {[%clk 0:00:23]} 23. axb3 {[%clk 0:01:40]}  Rxc1 {[%clk 0:00:19]} 24. Rxc1 {[%clk 0:01:40]}  Nd7 {[%clk 0:00:20]} 25. Nf5 {[%clk 0:01:19]}  g6 {[%clk 0:00:17]} 26. Ne7+ {[%clk 0:01:19]}  Kg7 {[%clk 0:00:15]} 27. Bxa7 {[%clk 0:01:10]}  Kf6 {[%clk 0:00:14]} 28. Be3 {[%clk 0:00:36]}  Ke6 {[%clk 0:00:15]} 29. f4 {[%clk 0:00:30]}  f5 {[%clk 0:00:14]} 30. fxe5 {[%clk 0:00:29]}  Nxe5 {[%clk 0:00:15]} 31. Bf4 {[%clk 0:00:18]}  Nd3 {[%clk 0:00:09]} 32. Rf1 {[%clk 0:00:11]}  Nxf4 {[%clk 0:00:09]} 33. Rxf4 {[%clk 0:00:12]}  Kxd6 {[%clk 0:00:10]} 34. Nc8+ {[%clk 0:00:12]}  Kc7 {[%clk 0:00:07]} 35. Rc4+ {[%clk 0:00:12]}  Kd7 {[%clk 0:00:07]} 36. Kf1 {[%clk 0:00:10]}  Rf6 {[%clk 0:00:07]} 37. Na7 {[%clk 0:00:10]}  Rb6 {[%clk 0:00:07]} 38. Rd4+ {[%clk 0:00:08]}  Kc7 {[%clk 0:00:06]} 39. Rc4+ {[%clk 0:00:07]}  Kd7 {[%clk 0:00:07]} 40. Rd4+ {[%clk 0:00:07]}  Rd6 {[%clk 0:00:08]} 41. Rxd6+ {[%clk 0:00:07]}  Kxd6 {[%clk 0:00:08]} 42. Nb5+ {[%clk 0:00:08]}  Kc5 {[%clk 0:00:09]} 43. Nc3 {[%clk 0:00:08]}  Kb4 {[%clk 0:00:09]} 44. Nd5+ {[%clk 0:00:07]}  Kxb3 {[%clk 0:00:10]} 45. Ke2 {[%clk 0:00:05]}  Kxb2 {[%clk 0:00:10]} 46. Kd3 {[%clk 0:00:06]}  b5 {[%clk 0:00:11]} 47. Nc3 {[%clk 0:00:06]}  b4 {[%clk 0:00:10]} 48. Nb5 {[%clk 0:00:07]}  b3 {[%clk 0:00:09]} 49. Nd4 {[%clk 0:00:06]}  Bf6 {[%clk 0:00:09]} 50. Nc6 {[%clk 0:00:06]}  Ka3 {[%clk 0:00:09]} 51. Na5 {[%clk 0:00:06]}  b2 {[%clk 0:00:08]} 52. Nc4+ {[%clk 0:00:06]}  Kb4 {[%clk 0:00:09]} 53. Nd2 {[%clk 0:00:06]}  Kc5 {[%clk 0:00:09]} 54. Kc2 {[%clk 0:00:06]}  Kd4 {[%clk 0:00:10]} 55. Nf3+ {[%clk 0:00:07]}  Ke3 {[%clk 0:00:10]} 56. Ne1 {[%clk 0:00:07]}  Kf2 {[%clk 0:00:10]} 57. Nd3+ {[%clk 0:00:08]}  Kxg2 {[%clk 0:00:11]} 58. Nc5 {[%clk 0:00:09]}  Bh8 {[%clk 0:00:11]} 59. Ne6 {[%clk 0:00:09]}  Kxh3 {[%clk 0:00:11]} 60. Nf8 {[%clk 0:00:09]}  Kg4 {[%clk 0:00:11]} 61. Nxh7 {[%clk 0:00:10]}  f4 {[%clk 0:00:11]} 0-1


[Site "https://www.chess.com"]